[Event "African Individual Chess-ch Women 2024"]
[Site "Accra"]
[Date "2024.03.13"]
[Round "1.1"]
[White "Wafa, Shahenda"]
[Black "Haile, Lidet Abate"]
[Result "1-0"]
[ECO "C62"]
[WhiteElo "2083"]
[BlackElo "1798"]
[Annotator "RC"]
[PlyCount "67"]
[EventDate "2024.03.13"]
[EventCountry "GHA"]
[SourceTitle "playchess.com"]
[Source "ChessBase"]
[SourceQuality "1"]
[TimeControl "5400+30"]

1. e4 {[%emt 1:31:00]} e5 {[%emt 1:31:00]} 2. Nf3 {[%emt 0:00:30]} Nc6 {[%emt 0:00:30]} 3. Bb5 {[%emt 0:00:30]} d6 {[%emt 0:00:30]} 4. c3 {[%emt 0:00:30]} Bd7 {[%emt 0:00:30]} 5. d4 {[%emt 0:00:30]} exd4 {[%emt 0:00:30]} 6. cxd4 {[%emt 0:00:30]} Nf6 {[%emt 0:00:30]} 7. Nc3 {[%emt 0:00:30]} Be7 {[%emt 0:00:30]} 8. e5 {[%emt 0:00:30]} dxe5 {[%emt 0:00:30]} 9. dxe5 {[%emt 0:00:30]} Ng4 {[%emt 0:00:30]} 10. Bf4 {[%emt 0:00:30]} h5 {[%emt 0:00:30]} 11. O-O {[%emt 0:00:30]} a6 {[%emt 0:00:30]} 12. Ba4 {[%emt 0:00:30]} g5 {[%emt 0:00:30]} 13. Bxc6 {[%emt 0:00:30]} bxc6 {[%emt 0:00:30]} 14. Bd2 {[%emt 0:00:30]} Nh6 {[%emt 0:00:30]} 15. Qc1 {[%emt 0:00:30]} g4 {[%emt 0:00:30]} 16. Ng5 {[%emt 0:00:30]} Nf5 {[%emt 0:00:30]} 17. Nce4 {[%emt 0:00:30]} Kf8 {[%emt 0:00:30]} 18. Qc4 {[%emt 0:00:30]} Be8 {[%emt 0:00:30]} 19. Rad1 {[%emt 0:00:30]} Qd5 {[%emt 0:00:30]} 20. Qc1 {[%emt 0:00:30]} Nd4 {[%emt 0:00:30]} 21. Rfe1 {[%emt 0:00:30]} Qxe5 {[%emt 0:00:30]} 22. Bf4 {[%emt 0:00:30]} Qg7 {[%emt 0:00:30]} 23. Nc5 {[%emt 0:00:30]} Bxg5 {[%emt 0:00:30]} 24. Bxg5 {[%emt 0:00:30]} Nf5 {[%emt 0:00:30]} 25. Qf4 {[%emt 0:00:30]} Qg6 {[%emt 0:00:30]} 26. Re5 {[%emt 0:00:30]} Ng7 {[%emt 0:00:30]} 27. Be7+ {[%emt 0:00:30]} Kg8 {[%emt 0:00:30]} 28. Rg5 {[%emt 0:00:30]} Qh6 {[%emt 0:00:30]} 29. Bf6 {[%emt 0:00:30]} Rh7 {[%emt 0:00:30]} 30. Rxg7+ {[%emt 0:00:30]} Qxg7 {[%emt 0:00:30]} 31. Bxg7 {[%emt 0:00:30]} Rxg7 {[%emt 0:00:30]} 32. Ne4 {[%emt 0:00:30]} f5 {[%emt 0:00:30]} 33. Nf6+ {[%emt 0:00:30]} Kf7 {[%emt 0:00:30]} 34. Qxf5 {[%emt 0:00:30]} 1-0

[Event "African Individual Chess-ch Women 2024"]
[Site "Accra"]
[Date "2024.03.13"]
[Round "1.2"]
[White "Boshoma, Chisomo"]
[Black "Nassr, Lina"]
[Result "0-1"]
[ECO "B45"]
[WhiteElo "1780"]
[BlackElo "2080"]
[Annotator "RC"]
[PlyCount "66"]
[EventDate "2024.03.13"]
[EventCountry "GHA"]
[SourceTitle "playchess.com"]
[Source "ChessBase"]
[SourceQuality "1"]
[TimeControl "5400+30"]

1. e4 {[%emt 1:31:00]} c5 {[%emt 0:00:18]} 2. Nf3 {[%emt 0:00:00]} e6 {[%emt 0:00:10]} 3. d4 {[%emt 0:00:00]} cxd4 {[%emt 0:00:17]} 4. Nxd4 {[%emt 0:00:00]} Nf6 {[%emt 0:00:15]} 5. Nc3 {[%emt 0:00:00]} Nc6 {[%emt 0:00:10]} 6. Nxc6 {[%emt 0:00:00]} bxc6 {[%emt 0:00:09]} 7. Bd3 {[%emt 0:00:00]} d5 {[%emt 0:02:06]} 8. O-O {[%emt 0:00:00]} Bd6 {[%emt 0:02:31]} 9. h3 {[%emt 0:00:00]} O-O {[%emt 0:01:42]} 10. Re1 {[%emt 0:00:00]} e5 {[%emt 0:06:10]} 11. Bg5 {[%emt 0:00:00]} Be6 {[%emt 0:04:27]} 12. exd5 {[%emt 0:00:00]} cxd5 {[%emt 0:06:19]} 13. Bb5 {[%emt 0:00:00]} Rb8 {[%emt 0:15:54]} 14. a4 {[%emt 0:00:00]} d4 {[%emt 0:10:59]} 15. Ne4 {[%emt 0:00:00]} Be7 {[%emt 0:03:08]} 16. Nxf6+ {[%emt 0:00:00]} Bxf6 {[%emt 0:05:34]} 17. Bxf6 {[%emt 0:00:00]} Qxf6 {[%emt 0:00:23]} 18. Qe2 {[%emt 0:00:00]} Rfc8 {[%emt 0:23:39]} 19. Rac1 {[%emt 0:00:00]} Rc5 {[%emt 0:02:36]} 20. b4 {[%emt 0:00:00]} Rd5 {[%emt 0:03:20]} 21. Bc6 {[%emt 0:00:58]} Bg4 {[%emt 0:05:05]} 22. Qc4 {[%emt 0:05:12]} Rd6 {[%emt 0:01:14]} 23. b5 {[%emt 0:00:01]} Bd7 {[%emt 0:01:41]} 24. Bd5 {[%emt 0:01:13]} Rc8 {[%emt 0:01:18]} 25. Bxf7+ {[%emt 0:00:36]} Qxf7 {[%emt 0:00:57]} 26. Qxf7+ {[%emt 0:00:11]} Kxf7 {[%emt 0:00:05]} 27. Rxe5 {[%emt 0:00:05]} d3 {[%emt 0:00:25]} 28. c4 {[%emt 0:02:13]} d2 {[%emt 0:00:10]} 29. Rd1 {[%emt 0:00:06]} Rxc4 {[%emt 0:00:10]} 30. Kf1 {[%emt 0:00:09]} Rxa4 {[%emt 0:00:29]} 31. Ke2 {[%emt 0:00:16]} Rad4 {[%emt 0:00:26]} 32. Rc5 {[%emt 0:01:04]} Re6+ {[%emt 0:00:15]} 33. Kf1 {[%emt 0:00:10]} Rde4 {[%emt 0:00:26]} 0-1

[Event "African Individual Chess-ch Women 2024"]
[Site "Accra"]
[Date "2024.03.13"]
[Round "1.3"]
[White "Ofowino, Toritsemuwa"]
[Black "Banda Natalie Katlo"]
[Result "0-1"]
[ECO "B12"]
[WhiteElo "1950"]
[BlackElo "1772"]
[Annotator "RC"]
[PlyCount "120"]
[EventDate "2024.03.13"]
[EventCountry "GHA"]
[SourceTitle "playchess.com"]
[Source "ChessBase"]
[SourceQuality "1"]
[TimeControl "5400+30"]

1. e4 {[%emt 0:00:14]} c6 {[%emt 0:00:04]} 2. d4 {[%emt 0:00:26]} d5 {[%emt 0:00:04]} 3. e5 {[%emt 0:00:29]} Bf5 {[%emt 0:00:27]} 4. h4 {[%emt 0:00:30]} h5 {[%emt 0:00:53]} 5. Bd3 {[%emt 0:01:06]} Bxd3 {[%emt 0:02:02]} 6. Qxd3 {[%emt 0:00:30]} e6 {[%emt 0:00:16]} 7. Nf3 {[%emt 0:01:01]} Nd7 {[%emt 0:01:51]} 8. O-O {[%emt 0:12:03]} c5 {[%emt 0:02:51]} 9. c4 {[%emt 0:02:20]} dxc4 {[%emt 0:02:13]} 10. Qxc4 {[%emt 0:00:25]} cxd4 {[%emt 0:00:20]} 11. Qxd4 {[%emt 0:00:50]} Bc5 {[%emt 0:00:27]} 12. Qd3 {[%emt 0:03:47]} Qc7 {[%emt 0:04:01]} 13. Bg5 {[%emt 0:07:37]} Ne7 {[%emt 0:04:54]} 14. Nc3 {[%emt 0:09:14]} a6 {[%emt 0:14:15]} 15. Qe2 {[%emt 0:10:29]} Nc6 {[%emt 0:03:53]} 16. Bf4 {[%emt 0:13:11]} Nd4 {[%emt 0:03:32]} 17. Nxd4 {[%emt 0:00:35]} Bxd4 {[%emt 0:00:07]} 18. Rfe1 {[%emt 0:02:03]} Bxc3 {[%emt 0:07:21]} 19. Rec1 {[%emt 0:01:21]} Qd8 {[%emt 0:03:30]} 20. Rxc3 {[%emt 0:01:02]} Qxh4 {[%emt 0:04:06]} 21. Rac1 {[%emt 0:03:54]} Qxf4 {[%emt 0:01:52]} 22. Rc8+ {[%emt 0:00:44]} Ke7 {[%emt 0:00:45]} 23. R8c7 {[%emt 0:00:04]} Rhd8 {[%emt 0:06:06]} 24. Qxh5 {[%emt 0:10:49]} Rh8 {[%emt 0:01:15]} 25. Qd1 {[%emt 0:01:29]} Qh2+ {[%emt 0:00:07]} 26. Kf1 {[%emt 0:00:03]} Qh1+ {[%emt 0:00:14]} 27. Ke2 {[%emt 0:00:03]} Qxd1+ {[%emt 0:00:09]} 28. Rxd1 {[%emt 0:00:06]} Rhd8 {[%emt 0:00:30]} 29. Rxb7 {[%emt 0:01:07]} Ke8 {[%emt 0:36:55]} 30. Rh1 {[%emt 0:01:13]} Rdb8 {[%emt 0:00:00]} 31. Rxb8+ {[%emt 0:00:30]} Rxb8 {[%emt 0:00:00]} 32. b3 {[%emt 0:00:17]} Rb4 {[%emt 0:00:00]} 33. Rh8+ {[%emt 0:00:47]} Ke7 {[%emt 0:00:00]} 34. Ra8 {[%emt 0:00:19]} Rb6 {[%emt 0:00:00]} 35. f4 {[%emt 0:01:43]} f6 {[%emt 0:00:00]} 36. Ra7 {[%emt 0:01:14]} f5 {[%emt 0:00:00]} 37. Ke3 {[%emt 0:00:52]} Ke8 {[%emt 0:00:00]} 38. Ra8+ {[%emt 0:00:32]} Ke7 {[%emt 0:00:00]} 39. Ra7 {[%emt 0:00:07]} Rc6 {[%emt 0:00:00]} 40. Kd2 {[%emt 0:00:42]} g6 {[%emt 0:00:00]} 41. g3 {[%emt 0:00:21]} Kd8 {[%emt 0:00:00]} 42. Ra8+ {[%emt 0:00:12]} Kc7 {[%emt 0:00:00]} 43. Rg8 {[%emt 0:02:19]} Nc5 {[%emt 0:00:00]} 44. Rg7+ {[%emt 0:01:11]} Kb6 {[%emt 0:00:00]} 45. Rxg6 {[%emt 0:00:33]} Ne4+ {[%emt 0:00:00]} 46. Kd3 {[%emt 0:04:57]} Nc3 {[%emt 0:00:00]} 47. a4 {[%emt 0:01:25]} Nd5 {[%emt 0:00:00]} 48. Kd2 {[%emt 0:00:00]} Ka5 {[%emt 0:00:00]} 49. g4 {[%emt 0:00:00]} Nxf4 {[%emt 0:00:00]} 50. Rg8 {[%emt 0:00:00]} fxg4 {[%emt 0:00:00]} 51. Rxg4 {[%emt 0:00:00]} Nd5 {[%emt 0:00:00]} 52. Rh4 {[%emt 0:00:00]} Rc5 {[%emt 0:00:00]} 53. Rg4 {[%emt 0:00:00]} Nb4 {[%emt 0:00:00]} 54. Rg7 {[%emt 0:00:00]} Rxe5 {[%emt 0:00:00]} 55. Rb7 {[%emt 0:00:00]} Nd5 {[%emt 0:00:00]} 56. Rb8 {[%emt 0:00:00]} Re4 {[%emt 0:00:00]} 57. Kc2 {[%emt 0:00:00]} Rb4 {[%emt 0:00:00]} 58. Re8 {[%emt 0:00:00]} Rb6 {[%emt 0:00:00]} 59. Rc8 {[%emt 0:00:00]} Rc6+ {[%emt 0:00:00]} 60. Rxc6 {[%emt 0:13:44]} Nb4+ {[%emt 0:15:30]} 0-1

[Event "African Individual Chess-ch Women 2024"]
[Site "Accra"]
[Date "2024.03.13"]
[Round "1.4"]
[White "Georgina Sackie"]
[Black "Paulo, Jemima"]
[Result "0-1"]
[ECO "B70"]
[WhiteElo "1722"]
[BlackElo "1946"]
[Annotator "RC"]
[PlyCount "70"]
[EventDate "2024.03.13"]
[EventCountry "GHA"]
[SourceTitle "playchess.com"]
[Source "ChessBase"]
[SourceQuality "1"]
[TimeControl "5400+30"]

1. e4 {[%emt 0:00:05]} c5 {[%emt 0:00:09]} 2. Nc3 {[%emt 0:00:46]} d6 {[%emt 0:00:58]} 3. Nf3 {[%emt 0:02:14]} Nf6 {[%emt 0:01:03]} 4. Bc4 {[%emt 0:00:53]} g6 {[%emt 0:00:24]} 5. O-O {[%emt 0:14:03]} Bg7 {[%emt 0:07:59]} 6. d4 {[%emt 0:03:26]} cxd4 {[%emt 0:00:33]} 7. Nxd4 {[%emt 0:02:36]} O-O {[%emt 0:02:00]} 8. Bb3 {[%emt 0:03:45]} Nc6 {[%emt 0:02:21]} 9. Nxc6 {[%emt 0:08:54]} bxc6 {[%emt 0:02:13]} 10. h3 {[%emt 0:06:52]} Qc7 {[%emt 0:05:59]} 11. Bf4 {[%emt 0:11:32]} e5 {[%emt 0:09:59]} 12. Bh2 {[%emt 0:00:12]} Nh5 {[%emt 0:03:35]} 13. Qd2 {[%emt 0:03:25]} Be6 {[%emt 0:00:21]} 14. Rad1 {[%emt 0:01:01]} Rad8 {[%emt 0:00:17]} 15. g4 {[%emt 0:02:02]} Bxb3 {[%emt 0:09:32]} 16. axb3 {[%emt 0:05:16]} Nf6 {[%emt 0:01:27]} 17. f4 {[%emt 0:05:39]} h6 {[%emt 0:01:54]} 18. Qe2 {[%emt 0:04:25]} Rfe8 {[%emt 0:06:25]} 19. Qc4 {[%emt 0:03:04]} exf4 {[%emt 0:14:18]} 20. Bxf4 {[%emt 0:07:36]} Qb6+ {[%emt 0:00:07]} 21. Qd4 {[%emt 0:05:45]} Nxe4 {[%emt 0:04:53]} 22. Qxb6 {[%emt 0:00:13]} axb6 {[%emt 0:00:07]} 23. Nxe4 {[%emt 0:01:04]} Rxe4 {[%emt 0:00:07]} 24. Rxd6 {[%emt 0:02:02]} Rxd6 {[%emt 0:00:07]} 25. Bxd6 {[%emt 0:00:02]} Bxb2 {[%emt 0:00:13]} 26. Bf4 {[%emt 0:00:21]} g5 {[%emt 0:00:51]} 27. Bg3 {[%emt 0:01:21]} Re2 {[%emt 0:01:47]} 28. Bf2 {[%emt 0:00:55]} b5 {[%emt 0:01:45]} 29. c4 {[%emt 0:00:26]} bxc4 {[%emt 0:03:55]} 30. bxc4 {[%emt 0:00:03]} Rc2 {[%emt 0:00:21]} 31. c5 {[%emt 0:01:30]} Ba3 {[%emt 0:00:08]} 32. Bd4 {[%emt 0:01:27]} Bxc5 {[%emt 0:00:15]} 33. Bxc5 {[%emt 0:00:07]} Rxc5 {[%emt 0:00:08]} 34. Rf6 {[%emt 0:01:33]} Kg7 {[%emt 0:02:43]} 35. Rd6 {[%emt 0:00:16]} Rc2 {[%emt 0:00:28]} 0-1

[Event "African Individual Chess-ch Women 2024"]
[Site "Accra"]
[Date "2024.03.13"]
[Round "1.5"]
[White "QUICKPEN, Deborah Ebimobo-ere"]
[Black "Gertrude Banini"]
[Result "1-0"]
[ECO "B17"]
[WhiteElo "1945"]
[BlackElo "1681"]
[Annotator "RC"]
[PlyCount "55"]
[EventDate "2024.03.13"]
[EventCountry "GHA"]
[SourceTitle "playchess.com"]
[Source "ChessBase"]
[SourceQuality "1"]
[TimeControl "5400+30"]

1. e4 {[%emt 0:00:04]} c6 {[%emt 0:00:21]} 2. d4 {[%emt 0:00:18]} d5 {[%emt 0:00:20]} 3. Nd2 {[%emt 0:00:23]} dxe4 {[%emt 0:00:43]} 4. Nxe4 {[%emt 0:00:54]} Nd7 {[%emt 0:00:40]} 5. Nf3 {[%emt 0:01:24]} Ngf6 {[%emt 0:00:54]} 6. Nxf6+ {[%emt 0:01:47]} Nxf6 {[%emt 0:00:52]} 7. Bd3 {[%emt 0:01:25]} Bg4 {[%emt 0:01:59]} 8. c3 {[%emt 0:02:19]} e6 {[%emt 0:01:22]} 9. O-O {[%emt 0:01:33]} Be7 {[%emt 0:01:46]} 10. Bf4 {[%emt 0:07:16]} O-O {[%emt 0:02:30]} 11. a4 {[%emt 0:03:32]} Nd5 {[%emt 0:04:46]} 12. Bg3 {[%emt 0:01:27]} Bxf3 {[%emt 0:04:04]} 13. Qxf3 {[%emt 0:01:29]} Bd6 {[%emt 0:03:51]} 14. Rae1 {[%emt 0:08:32]} Bxg3 {[%emt 0:04:08]} 15. fxg3 {[%emt 0:03:05]} Nf6 {[%emt 0:07:11]} 16. Re5 {[%emt 0:04:32]} h6 {[%emt 0:05:20]} 17. g4 {[%emt 0:04:13]} Nh7 {[%emt 0:14:42]} 18. Qe4 {[%emt 0:07:49]} f5 {[%emt 0:06:51]} 19. gxf5 {[%emt 0:01:27]} exf5 {[%emt 0:07:33]} 20. Rexf5 {[%emt 0:00:41]} Rxf5 {[%emt 0:01:51]} 21. Qxf5 {[%emt 0:00:40]} Nf6 {[%emt 0:01:34]} 22. Qg6 {[%emt 0:01:05]} Qe7 {[%emt 0:04:55]} 23. Bc4+ {[%emt 0:04:14]} Kh8 {[%emt 0:02:27]} 24. Qf7 {[%emt 0:01:36]} Qxf7 {[%emt 0:01:15]} 25. Bxf7 {[%emt 0:00:16]} Rd8 {[%emt 0:03:16]} 26. Re1 {[%emt 0:02:33]} Rd7 {[%emt 0:01:17]} 27. Bg6 {[%emt 0:01:14]} Nd5 {[%emt 0:01:09]} 28. Re8# {[%emt 0:01:08]} 1-0

[Event "African Individual Chess-ch Women 2024"]
[Site "Accra"]
[Date "2024.03.13"]
[Round "1.6"]
[White "Tsinjoviniavo, Aina Mahasambatra"]
[Black "February, Jesse Nikki"]
[Result "0-1"]
[ECO "B32"]
[WhiteElo "1681"]
[BlackElo "1920"]
[Annotator "RC"]
[PlyCount "85"]
[EventDate "2024.03.13"]
[EventCountry "GHA"]
[SourceTitle "playchess.com"]
[Source "ChessBase"]
[SourceQuality "1"]
[TimeControl "5400+30"]

1. e4 {[%emt 0:00:03]} c5 {[%emt 0:00:43]} 2. Nf3 {[%emt 0:00:35]} Nc6 {[%emt 0:00:09]} 3. d4 {[%emt 0:00:28]} cxd4 {[%emt 0:00:08]} 4. Nxd4 {[%emt 0:00:20]} e5 {[%emt 0:00:20]} 5. Nb5 {[%emt 0:00:19]} a6 {[%emt 0:00:18]} 6. Nd6+ {[%emt 0:00:14]} Bxd6 {[%emt 0:00:10]} 7. Qxd6 {[%emt 0:00:11]} Qe7 {[%emt 0:00:08]} 8. Qd1 {[%emt 0:00:57]} Nf6 {[%emt 0:01:01]} 9. Nc3 {[%emt 0:01:19]} h6 {[%emt 0:00:53]} 10. Be3 {[%emt 0:00:56]} d6 {[%emt 0:01:17]} 11. h3 {[%emt 0:02:00]} Be6 {[%emt 0:01:14]} 12. Be2 {[%emt 0:00:49]} O-O {[%emt 0:03:31]} 13. O-O {[%emt 0:02:33]} b5 {[%emt 0:02:24]} 14. a3 {[%emt 0:02:43]} Na5 {[%emt 0:05:04]} 15. b3 {[%emt 0:02:05]} Rac8 {[%emt 0:03:37]} 16. Qd2 {[%emt 0:03:47]} Qc7 {[%emt 0:10:13]} 17. Nd5 {[%emt 0:01:42]} Bxd5 {[%emt 0:00:40]} 18. exd5 {[%emt 0:00:34]} Nb7 {[%emt 0:03:40]} 19. c4 {[%emt 0:04:32]} Ne4 {[%emt 0:16:47]} 20. Qc2 {[%emt 0:02:51]} f5 {[%emt 0:00:59]} 21. Bd3 {[%emt 0:01:51]} bxc4 {[%emt 0:01:17]} 22. bxc4 {[%emt 0:00:33]} Nbc5 {[%emt 0:00:45]} 23. Bxc5 {[%emt 0:01:31]} Qxc5 {[%emt 0:00:28]} 24. Rfe1 {[%emt 0:01:42]} Rf6 {[%emt 0:09:04]} 25. Bxe4 {[%emt 0:01:02]} fxe4 {[%emt 0:00:07]} 26. Rxe4 {[%emt 0:00:09]} Rcf8 {[%emt 0:02:39]} 27. Re2 {[%emt 0:00:52]} Rf4 {[%emt 0:00:23]} 28. Rc1 {[%emt 0:00:58]} R8f6 {[%emt 0:08:53]} 29. a4 {[%emt 0:00:58]} a5 {[%emt 0:00:41]} 30. g3 {[%emt 0:03:20]} Rf3 {[%emt 0:00:44]} 31. Kg2 {[%emt 0:00:32]} Qa3 {[%emt 0:08:59]} 32. c5 {[%emt 0:02:07]} dxc5 {[%emt 0:01:10]} 33. Qxc5 {[%emt 0:00:11]} Rxg3+ {[%emt 0:01:40]} 34. Kf1 {[%emt 0:02:08]} Qf3 {[%emt 0:02:42]} 35. Ke1 {[%emt 0:01:42]} Rg1+ {[%emt 0:00:34]} 36. Kd2 {[%emt 0:00:15]} Rxc1 {[%emt 0:00:08]} 37. Qxc1 {[%emt 0:00:26]} Qxd5+ {[%emt 0:00:06]} 38. Ke1 {[%emt 0:00:20]} Qh1+ {[%emt 0:00:14]} 39. Kd2 {[%emt 0:00:10]} Rd6+ {[%emt 0:00:05]} 40. Kc2 {[%emt 0:00:50]} Rc6+ {[%emt 0:00:05]} 41. Kd3 {[%emt 0:00:20]} Rxc1 {[%emt 0:00:28]} 42. Rxe5 {[%emt 0:00:16]} Qxh3+ {[%emt 0:00:21]} 43. Kd4 {[%emt 1:00:49]} 0-1

[Event "African Individual Chess-ch Women 2024"]
[Site "Accra"]
[Date "2024.03.13"]
[Round "1.7"]
[White "Junior, Ednasia"]
[Black "Mugide, Safinah"]
[Result "1-0"]
[ECO "B28"]
[WhiteElo "1915"]
[BlackElo "1676"]
[Annotator "RC"]
[PlyCount "69"]
[EventDate "2024.03.13"]
[EventCountry "GHA"]
[SourceTitle "playchess.com"]
[Source "ChessBase"]
[SourceQuality "1"]
[TimeControl "5400+30"]

1. e4 {[%emt 1:31:00]} c5 {[%emt 0:00:42]} 2. Nf3 {[%emt 0:00:00]} a6 {[%emt 0:02:21]} 3. c4 {[%emt 0:00:00]} Nc6 {[%emt 0:03:32]} 4. d4 {[%emt 0:00:00]} cxd4 {[%emt 0:04:03]} 5. Nxd4 {[%emt 0:00:00]} Qb6 {[%emt 0:07:58]} 6. Nc2 {[%emt 0:00:00]} g6 {[%emt 0:02:25]} 7. Nc3 {[%emt 0:00:00]} Bg7 {[%emt 0:00:49]} 8. Nd5 {[%emt 0:00:00]} Qd8 {[%emt 0:01:27]} 9. Be3 {[%emt 0:00:00]} Qa5+ {[%emt 0:03:51]} 10. b4 {[%emt 0:00:00]} Nxb4 {[%emt 0:02:08]} 11. Ncxb4 {[%emt 0:00:00]} Kf8 {[%emt 0:08:10]} 12. Rb1 {[%emt 0:00:00]} e6 {[%emt 0:01:07]} 13. Bb6 {[%emt 0:00:00]} Qa3 {[%emt 0:02:51]} 14. Rb3 {[%emt 0:00:00]} Qa4 {[%emt 0:04:11]} 15. Bc5+ {[%emt 0:00:00]} Ne7 {[%emt 0:03:49]} 16. Nb6 {[%emt 0:00:00]} Qa5 {[%emt 0:03:55]} 17. Qd6 {[%emt 0:00:00]} Bf6 {[%emt 0:01:12]} 18. e5 {[%emt 0:00:00]} Bh4 {[%emt 0:03:53]} 19. g3 {[%emt 0:00:00]} Kg7 {[%emt 0:01:50]} 20. gxh4 {[%emt 0:00:00]} Nc6 {[%emt 0:02:39]} 21. Nxa8 {[%emt 0:00:00]} Nxb4 {[%emt 0:01:12]} 22. Bxb4 {[%emt 0:00:00]} Qxa2 {[%emt 0:00:21]} 23. Qd1 {[%emt 0:00:00]} Qa4 {[%emt 0:02:54]} 24. Nb6 {[%emt 0:00:00]} Qc6 {[%emt 0:01:19]} 25. Rg1 {[%emt 0:00:00]} Qe4+ {[%emt 0:01:26]} 26. Be2 {[%emt 0:00:00]} Qxh4 {[%emt 0:33:25]} 27. Qd6 {[%emt 0:00:00]} Re8 {[%emt 0:00:00]} 28. Rf3 {[%emt 0:00:00]} Qe4 {[%emt 0:00:00]} 29. Rg4 {[%emt 0:00:00]} Qb1+ {[%emt 0:00:00]} 30. Bd1 {[%emt 0:00:00]} f5 {[%emt 0:00:00]} 31. exf6+ {[%emt 0:00:00]} Kf7 {[%emt 0:00:00]} 32. Qe7+ {[%emt 0:00:00]} Rxe7 {[%emt 0:00:00]} 33. fxe7+ {[%emt 0:00:00]} Kg7 {[%emt 0:00:00]} 34. Bc3+ {[%emt 0:00:00]} Kh6 {[%emt 0:00:00]} 35. Rh3# {[%emt 0:00:00]} 1-0

[Event "African Individual Chess-ch Women 2024"]
[Site "Accra"]
[Date "2024.03.15"]
[Round "2.1"]
[White "Laubscher, Anzel"]
[Black "Wafa, Shahenda"]
[Result "*"]
[ECO "A36"]
[WhiteElo "1820"]
[BlackElo "2083"]
[Annotator "RC"]
[PlyCount "20"]
[EventDate "2024.03.13"]
[EventCountry "GHA"]
[SourceTitle "playchess.com"]
[Source "ChessBase"]
[SourceQuality "1"]
[TimeControl "5400+30"]

1. e4 {[%emt 1:31:00]} c5 {[%emt 1:31:00]} 2. c4 {[%emt 0:00:30]} Nc6 {[%emt 0:00:30]} 3. g3 {[%emt 0:00:30]} g6 {[%emt 0:00:30]} 4. Bg2 {[%emt 0:00:30]} Bg7 {[%emt 0:00:30]} 5. Ne2 {[%emt 0:00:30]} e6 {[%emt 0:00:30]} 6. O-O {[%emt 0:00:30]} Nge7 {[%emt 0:00:30]} 7. Nbc3 {[%emt 0:00:30]} O-O {[%emt 0:00:30]} 8. d3 {[%emt 0:00:30]} a6 {[%emt 0:00:30]} 9. Be3 {[%emt 0:00:30]} Nd4 {[%emt 0:00:30]} 10. Qd2 {[%emt 0:00:30]} Re8 {[%emt 0:00:30]} *

[Event "African Individual Chess-ch Women 2024"]
[Site "Accra"]
[Date "2024.03.15"]
[Round "2.4"]
[White "Mbatha, Constance"]
[Black "QUICKPEN, Deborah Ebimobo-ere"]
[Result "*"]
[ECO "C01"]
[WhiteElo "1799"]
[BlackElo "1945"]
[Annotator "RC"]
[PlyCount "26"]
[EventDate "2024.03.13"]
[EventCountry "GHA"]
[SourceTitle "playchess.com"]
[Source "ChessBase"]
[SourceQuality "1"]
[TimeControl "5400+30"]

1. e4 {[%emt 0:00:06]} e6 {[%emt 0:00:14]} 2. d4 {[%emt 0:00:09]} d5 {[%emt 0:00:24]} 3. exd5 {[%emt 0:00:08]} exd5 {[%emt 0:00:21]} 4. Nf3 {[%emt 0:00:11]} Bd6 {[%emt 0:00:39]} 5. Be2 {[%emt 0:01:09]} Ne7 {[%emt 0:00:52]} 6. O-O {[%emt 0:00:20]} O-O {[%emt 0:00:53]} 7. Bg5 {[%emt 0:00:47]} f6 {[%emt 0:01:48]} 8. Be3 {[%emt 0:00:36]} c6 {[%emt 0:01:25]} 9. c4 {[%emt 0:01:24]} Be6 {[%emt 0:02:27]} 10. c5 {[%emt 0:00:40]} Bc7 {[%emt 0:00:23]} 11. Qd2 {[%emt 0:00:09]} Nd7 {[%emt 0:01:39]} 12. b4 {[%emt 0:00:51]} Qe8 {[%emt 0:05:15]} 13. Nc3 {[%emt 0:05:16]} Ng6 {[%emt 0:03:08]} *

[Event "African Individual Chess-ch Women 2024"]
[Site "Accra"]
[Date "2024.03.15"]
[Round "2.6"]
[White "Banda Natalie Katlo"]
[Black "Junior, Ednasia"]
[Result "*"]
[ECO "A45"]
[WhiteElo "1772"]
[BlackElo "1915"]
[Annotator "RC"]
[PlyCount "20"]
[EventDate "2024.03.13"]
[EventCountry "GHA"]
[SourceTitle "playchess.com"]
[Source "ChessBase"]
[SourceQuality "1"]
[TimeControl "5400+30"]

1. d4 {[%emt 0:00:02]} Nf6 {[%emt 0:10:04]} 2. Bg5 {[%emt 0:00:06]} g6 {[%emt 0:00:36]} 3. Bxf6 {[%emt 0:00:07]} exf6 {[%emt 0:00:09]} 4. c4 {[%emt 0:00:07]} Bg7 {[%emt 0:00:31]} 5. e3 {[%emt 0:00:05]} O-O {[%emt 0:00:04]} 6. g3 {[%emt 0:00:06]} d5 {[%emt 0:00:32]} 7. Nc3 {[%emt 0:01:08]} dxc4 {[%emt 0:01:38]} 8. Bxc4 {[%emt 0:00:36]} c6 {[%emt 0:00:55]} 9. Qf3 {[%emt 0:05:08]} Nd7 {[%emt 0:04:54]} 10. Nge2 {[%emt 0:01:44]} f5 {[%emt 0:02:17]} *